Cogmind - Beta 12 @@@ ROGUE MODE // 2024.01.13 @ 23:24:00 Player: puppuppit Result: Destroyed by G-34 Mercenary with Small Laser Performance ------------- Evolutions (0) 0 Regions Visited (4) 800 Robots Destroyed (50) 250 Value Destroyed (940) 940 Prototype IDs (28) 560 Alien Tech Used (0) 0 Bonus (332) 332 TOTAL SCORE: 2882 Bonus ------- High Alert Combat Kills 32 Aligned with FarCom 300 Cogmind --------- Core Integrity 0/250 Matter 300/300 Energy 125/125 System Corruption 2% Temperature Cool (6) Movement Hovering (66) Location -9/Mines Parts ------- > --- POWER (1) -------- Light Ion Engine > --- PROPULSION (2) --- Improved Hover Unit Combat Airjet > --- UTILITY (2) ------ Small Storage Unit Hacking Suite > --- WEAPON (2) ------- Autogun Autogun > --- INVENTORY (8) ---- Makeshift Power Source Improved Hover Unit Improved Hover Unit Improved Hover Unit Medium Matter Pod (100) Skeleton Box Spread Laser Datajack Peak State ------------ > --- POWER ------------ Light Ion Engine > --- PROPULSION ------- Improved Hover Unit Combat Airjet > --- UTILITY ---------- Small Storage Unit Hacking Suite > --- WEAPON ----------- Autogun Autogun > --- INVENTORY -------- Makeshift Power Source Improved Hover Unit Improved Hover Unit Improved Hover Unit Medium Matter Pod Skeleton Box Spread Laser Datajack [Rating: 18] Favorites ----------- Power Light Ion Engine Engine Light Ion Engine Propulsion Improved Hover Unit Wheel Wheel Hover Unit Improved Hover Unit Utility Small Storage Unit Device Improved Terrain Scanner Storage Small Storage Unit Processor Visual Processing Unit Hackware Hacking Suite Weapon Light Assault Rifle Energy Gun Spread Laser Ballistic Gun Light Assault Rifle Ballistic Cannon Improved Light Cannon Build | -11 -10 -10 -10 -9 ------- Run | Jun Mat Min Exi Min Slots Evolved . | . . . . . Power . | . . . . . Propulsion . | . . . . . Utility . | . . . . . Weapon . | . . . . . Parts Attached 51 | 10 32 1 4 4 Power 9 | 1 7 . . 1 Engine 9 | 1 7 . . 1 Core . | . . . . . Reactor . | . . . . . Propulsion 19 | 4 12 . 2 1 Treads . | . . . . . Leg . | . . . . . Wheel 8 | 4 4 . . . Hover 11 | . 8 . 2 1 Flight . | . . . . . Utility 6 | 2 4 . . . Device 1 | 1 . . . . Storage 2 | 1 1 . . . Processor 1 | . 1 . . . Hackware 2 | . 2 . . . Protection . | . . . . . Artifact . | . . . . . Weapon 17 | 3 9 1 2 2 Energy Gun 4 | . 2 1 1 . Energy Cannon . | . . . . . Ballistic Gun 12 | 3 6 . 1 2 Ballistic Cannon 1 | . 1 . . . Launcher . | . . . . . Special Weapon . | . . . . . Impact Weapon . | . . . . . Slashing Weapon . | . . . . . Piercing Weapon . | . . . . . Special Melee Weapon . | . . . . . Unidentified Prototypes 1 | . 1 . . . Parts Lost 7 | . 7 . . . Power 2 | . 2 . . . Propulsion 2 | . 2 . . . Utility 2 | . 2 . . . Weapon 1 | . 1 . . . Highest Loss Streak 2 | . 2 . . . To Critical Strikes . | . . . . . Average Slot Usage (%) 97 | . 97 100 90 100 Engine 13 | . 13 14 14 14 Wheel 7 | . 12 . . . Hover 20 | . 15 28 28 28 Device 3 | . 5 . . . Storage 14 | . 14 14 14 14 Processor 1 | . 2 . . . Hackware 8 | . 4 14 14 14 Energy Gun 8 | . 7 11 9 7 Ballistic Gun 18 | . 20 16 9 20 Naked Turns . | . . . . . Heaviest Build 15 | 12 15 14 14 14 Greatest Support 32 | 32 26 14 14 19 Greatest Overweight (x) 1 | . 1 . . . Average Overweight (x) . | . . . . . Largest Inventory Capacity 8 | 8 8 8 8 8 Average Capacity 7 | 7 8 8 8 8 Most Carried 8 | 8 8 8 8 8 Average Carried 7 | 2 7 8 7 7 Final Capacity 8 | 8 8 8 8 8 Final Carried 8 | 8 8 8 8 8 Class Distribution -------------------- 62% | Mutant 37% | Scavenger-Mutant Dominant Class ---------------- Scavenger-Mutant | -10/Materials Mutant | -10/Mines Mutant | -10/Exiles Mutant | -9/Mines Resources | -11 -10 -10 -10 -9 ----------- Run | Jun Mat Min Exi Min Matter Collected 1127 | 370 519 68 . 170 Remotely . | . . . . . Salvage Created 1410 | 162 1135 68 . 45 Parts 122 | 17 90 7 . 8 Haulers Intercepted 1 | . 1 . . . Recyclers Shooed . | . . . . . Parts Field Recycled . | . . . . . Retrieved Matter . | . . . . . Parts Self-Destructed . | . . . . . Prevented . | . . . . . Kills | -11 -10 -10 -10 -9 ------- Run | Jun Mat Min Exi Min Combat Hostiles Destroyed 30 | . 22 4 . 4 Guns 30 | . 22 4 . 4 Classes Destroyed 9 | 2 7 . . . Worker 4 | . 4 . . . Builder 2 | . 2 . . . Tunneler 5 | 5 . . . . Hauler 1 | . 1 . . . Recycler 1 | 1 . . . . Operator 4 | . 4 . . . Watcher 3 | . 3 . . . Swarmer 13 | . 6 3 . 4 Grunt 17 | . 16 1 . . Best Kill Streak 8 | 5 8 3 . 4 Combat Bots Only 4 | . 3 3 . 4 Max Kills in Single Turn 2 | 1 2 1 . 1 Gunslinging 1 | . 1 . . . Exploded . | . . . . . Melee . | . . . . . Uniques/NPCs Destroyed . | . . . . . Combat | -11 -10 -10 -10 -9 -------- Run | Jun Mat Min Exi Min Damage Taken 1131 | . 907 81 . 143 Core 258 | . 232 6 . 20 Absorbed by Shields . | . . . . . Regen/Repaired (Parts) 22 | . 22 . . . Core Remaining (%) 100 | 100 . . . . Volleys Fired 136 | 18 96 11 . 11 Largest 2 | 2 2 2 . 2 Hottest 88 | 40 85 88 . 88 Shots Fired 257 | 36 178 22 . 21 Gun 257 | 36 178 22 . 21 Cannon . | . . . . . Launcher . | . . . . . Special . | . . . . . Kinetic 207 | 36 136 19 . 16 Thermal 20 | . 12 3 . 5 Explosive . | . . . . . Electromagnetic 30 | . 30 . . . Robot Hit Streak 19 | 8 19 7 . 4 Robot Miss Streak 9 | 3 8 6 . 9 Penetration Max . | . . . . . Secondary Targets 10 | . 8 . . 2 Max Gunslinging Chain 1 | . 1 . . 1 Shots Hit Robots 163 | 20 117 15 . 11 Core Hits 93 | 8 71 4 . 10 Critical Kills . | . . . . . Critical Parts Destroyed 2 | . 1 1 . . Critical Strikes 2 | . 1 1 . . Destroy 2 | . 1 1 . . Melee Attacks . | . . . . . Impact . | . . . . . Slashing . | . . . . . Piercing . | . . . . . Sneak Attacks . | . . . . . Combat Hostiles . | . . . . . Follow-up Attacks . | . . . . . Damage Inflicted 2088 | 198 1485 233 . 172 Guns 1959 | 198 1356 233 . 172 Cannons . | . . . . . Explosions 129 | . 129 . . . Melee . | . . . . . Ramming . | . . . . . Kinetic 1291 | 198 759 208 . 126 Thermal 336 | . 265 25 . 46 Explosive . | . . . . . Electromagnetic 461 | . 461 . . . Impact . | . . . . . Slashing . | . . . . . Piercing . | . . . . . Highest Corruption 2 | . 2 2 2 2 Average Corruption 1 | . 1 2 2 2 Corruption Purged . | . . . . . Corruption Blocked . | . . . . . Effects 11 | . 6 1 2 2 Message Errors 2 | . 2 . . . Matter Fused 1 | . . . 1 . Heat Flow Errors 2 | . . 1 1 . Energy Discharges 1 | . . . . 1 Data Loss (minor) 2 | . 1 . . 1 Data Loss (major) 1 | . 1 . . . Misfires 1 | . 1 . . . Weapon Failures 1 | . 1 . . . Overload Shots . | . . . . . Overflow Damage 23 | . 23 . . . Projectiles . | . . . . . Explosions 23 | . 23 . . . Melee . | . . . . . Knockbacks . | . . . . . Impact . | . . . . . Kinetic . | . . . . . Secondary . | . . . . . Self-Inflicted Damage 123 | . 123 . . . Shots 3 | . 3 . . . Rammed . | . . . . . Targets Rammed . | . . . . . Kicked . | . . . . . Crushed . | . . . . . Highest Temperature 268 | . 126 250 268 188 Average Temperature 60 | . 43 92 132 66 Received Heat Transfer 297 | . 285 6 . 6 Siege Activations . | . . . . . Robots Corrupted . | . . . . . Combat Hostiles . | . . . . . Parts Fried 1 | . 1 . . . Impact Corruptions . | . . . . . Robots Melted . | . . . . . Combat Hostiles . | . . . . . Parts Melted . | . . . . . Heat Transferred 405 | . 315 30 . 60 Parts Sabotaged . | . . . . . Parts Stolen . | . . . . . Parts Stripped . | . . . . . Power Chain Reactions 3 | . 3 . . . Missiles Intercepted . | . . . . . Alert | -11 -10 -10 -10 -9 ------- Run | Jun Mat Min Exi Min Peak Influence 547 | 30 547 244 . 90 Initial 154 | . 19 154 . . Average 249 | 15 332 223 . 86 Maximum Alert Level 2 | . 2 1 . . Low Security (%) 38 | 100 17 9 . 100 Level 1 34 | . 40 90 . . Level 2 27 | . 42 . . . Level 3 . | . . . . . Level 4 . | . . . . . Level 5 . | . . . . . High Security . | . . . . . Max Security . | . . . . . Squads Dispatched 6 | . 5 . . 1 Investigation 5 | . 4 . . 1 Extermination . | . . . . . Reinforcement 1 | . 1 . . . Assault . | . . . . . Garrison . | . . . . . Intercept . | . . . . . Searches Triggered . | . . . . . Construction Impeded . | . . . . . Haulers Reinforced . | . . . . . Active Scanning Responses . | . . . . . Cargo Convoy Interrupts . | . . . . . Stealth | -11 -10 -10 -10 -9 --------- Run | Jun Mat Min Exi Min Distress Signals 4 | . 3 1 . . Communications Jammed . | . . . . . Distress Signals . | . . . . . Times Spotted 43 | . 31 4 . 8 Peak Tracking Total 4 | . 4 3 . 4 Tactical Retreats 3 | . 2 . . 1 Traps | -11 -10 -10 -10 -9 ------- Run | Jun Mat Min Exi Min Traps Triggered 1 | . 1 . . . Indirectly . | . . . . . Trap Hack Attempts . | . . . . . Triggered . | . . . . . Disarmed . | . . . . . Reprogrammed . | . . . . . Reused . | . . . . . Traps Extracted . | . . . . . Installed . | . . . . . Triggered . | . . . . . Machines | -11 -10 -10 -10 -9 ---------- Run | Jun Mat Min Exi Min Machines Disabled 5 | . 5 . . . Max in Single Turn 4 | . 4 . . . Machines Repaired . | . . . . . Machines Sabotaged . | . . . . . Overloaded Fab Kills . | . . . . . Hacking | -11 -10 -10 -10 -9 --------- Run | Jun Mat Min Exi Min Machines Accessed 12 | . 6 . 5 1 Terminals 5 | . 5 . . . Fabricators . | . . . . . Repair Stations 1 | . 1 . . . Recycling Units . | . . . . . Scanalyzers . | . . . . . Garrison Access . | . . . . . Total Hacks 74 | . 23 . 50 1 Successful 60 | . 9 . 50 1 Failed 14 | . 14 . . . Catastrophic 3 | . 3 . . . Database Lockouts . | . . . . . Manual 9 | . 8 . 1 . Terminals 19 | . 19 . . . Fabricators . | . . . . . Repair Stations 4 | . 4 . . . Recycling Units . | . . . . . Scanalyzers . | . . . . . Garrison Access . | . . . . . Terminal Hacks 58 | . 7 . 50 1 Record 49 | . . . 49 . Robot Analysis 3 | . 3 . . . Prototype ID Bank 2 | . 2 . . . Open Door 1 | . . . . 1 Emergency Access Points 1 | . 1 . . . Registered Components 1 | . 1 . . . EX-Prototype ID Bank 1 | . . . 1 . Fabricator Hacks . | . . . . . Repair Station Hacks 2 | . 2 . . . Scan Component 1 | . 1 . . . Repair 1 | . 1 . . . Recycling Unit Hacks . | . . . . . Scanalyzer . | . . . . . Garrison Access Hacks . | . . . . . Unauthorized Hacks . | . . . . . Terminals . | . . . . . Fabricators . | . . . . . Repair Stations . | . . . . . Recycling Units . | . . . . . Scanalyzers . | . . . . . Garrison Access . | . . . . . Data Cores Recovered . | . . . . . Used . | . . . . . Hacking Detections 6 | . 6 . . . Full Trace Events 5 | . 5 . . . Feedback Events 2 | . 2 . . . Corruption 1 | . 1 . . . Hackware Fried 1 | . 1 . . . Feedback Blocked . | . . . . . Robot Schematics Acquired . | . . . . . Robots Built . | . . . . . Authchips . | . . . . . Time . | . . . . . Total Robot Build Rating . | . . . . . Part Schematics Acquired . | . . . . . Parts Built . | . . . . . Authchips . | . . . . . Time . | . . . . . Total Part Build Rating . | . . . . . Parts Repaired 1 | . 1 . . . Time 13 | . 13 . . . Parts Recycled . | . . . . . Recycled Matter . | . . . . . Retrieved Matter . | . . . . . Retrieved Components . | . . . . . Parts Scanalyzed . | . . . . . Part Schematics Acquired . | . . . . . Parts Damaged . | . . . . . Bothacking | -11 -10 -10 -10 -9 ------------ Run | Jun Mat Min Exi Min Used RIF Installer . | . . . . . Robots Hacked . | . . . . . Non-combat . | . . . . . Combat . | . . . . . Robot Hacks Applied . | . . . . . Relay Couplers Released . | . . . . . Fabnet Peak Effective % . | . . . . . Robots Rewired . | . . . . . Allies Hacked . | . . . . . Hacks Repelled . | . . . . . Allies | -11 -10 -10 -10 -9 -------- Run | Jun Mat Min Exi Min Total Allies 3 | . . . . 3 Largest Group 3 | . . . . 3 Highest-Rated Group 40 | . . . . 40 Highest-Rated Ally 16 | . . . . 16 Total Orders . | . . . . . Ally Attacks 18 | . . . . 18 Total Damage 122 | . . . . 122 Kills 3 | . . . . 3 Allies Corrupted . | . . . . . Allies Melted . | . . . . . Intel | -11 -10 -10 -10 -9 ------- Run | Jun Mat Min Exi Min Robot Analysis Total 3 | . 3 . . . Derelict Logs Recovered 1 | . . 1 . . Drone Launches . | . . . . . Drone Recoveries . | . . . . . Exploration | -11 -10 -10 -10 -9 ------------- Run | Jun Mat Min Exi Min Turns Passed 1482 | 151 842 119 182 188 Spaces Moved 1453 | 84 733 157 295 184 Core 3 | 3 . . . . Treads . | . . . . . Legs . | . . . . . Wheels 291 | 81 210 . . . Hover 1159 | . 523 157 295 184 Flight . | . . . . . Fastest Speed 50 | 50 56 56 56 56 Average Speed 62 | 93 64 56 56 58 Slowest Speed 116 | 100 116 56 56 66 Overloaded Moves . | . . . . . Propulsion Burnouts . | . . . . . Robots Hopped . | . . . . . Cave-ins Triggered . | . . . . . Exploration Rate (%) 47 | 4 90 25 71 47 Regions Visited 4 Branch Regions 3 Pre-discovered Areas 2 | . . 1 1 . Known Exits Taken . | . . . . . Unknown Exits Taken 4 | 1 1 1 1 . Scrap Searched 2 | . . . . 2 Spaces Dug . | . . . . . Terrain Destroyed 12 | . 12 . . . Melee . | . . . . . Projectile . | . . . . . AOE 12 | . 12 . . . Terrain Rammed . | . . . . . Walls Destroyed . | . . . . . Machines Disabled . | . . . . . Actions | -11 -10 -10 -10 -9 --------- Run | Jun Mat Min Exi Min Total 1809 | 119 961 168 313 248 Wait 97 | . 45 . 9 43 Move 1449 | 83 732 156 294 184 Hop . | . . . . . Pick Up 33 | 7 22 . 2 2 Fast Attach 17 | 7 8 . 2 . Attach 5 | . 5 . . . Detach 1 | . 1 . . . Swap 29 | 3 19 1 2 4 Drop 42 | 1 33 . 4 4 Fire 136 | 18 96 11 . 11 Melee . | . . . . . Ram . | . . . . . Kick . | . . . . . Crush . | . . . . . Escape Stasis . | . . . . . Rewire . | . . . . . Trap . | . . . . . Miscellaneous . | . . . . . Route ------- -11/Junkyard -10/Materials (discovered 4 exits: [*Mat x3] / [*Min]) -10/Mines -10/Exiles -9/Mines (discovered 1 exit: [*Mat]) History --------- Turn | Location | Event 15 | -11/Junkyard | Discovered new exit (range 16) 152 | -11/Junkyard | Entered Materials 290 | -10/Materials | Discovered new exit (range 15) 568 | -10/Materials | Build established: Scavenger-Mutant 577 | -10/Materials | Discovered new exit (range 18) 603 | -10/Materials | Core integrity fell below 50% 646 | -10/Materials | Core integrity fell below 20% 747 | -10/Materials | Repaired Hover Unit 782 | -10/Materials | Discovered new exit (range 5) 906 | -10/Materials | Hacking Suite fried by hacking feedback 939 | -10/Materials | Discovered new exit (range 15) 994 | -10/Materials | Entered Mines 1086 | -10/Mines | Learned location of Zion (-7) 1094 | -10/Mines | Build established: Mutant 1110 | -10/Mines | Deemed a non-threat by the Exiles lab entrance 1110 | -10/Mines | Discovered new exit (range 5) 1113 | -10/Mines | Entered Exiles 1128 | -10/Exiles | Met 8R-AWN 1136 | -10/Exiles | Met EX-HEX 1154 | -10/Exiles | Met EX-BIN 1162 | -10/Exiles | Aligned with FarCom system 1162 | -10/Exiles | Given EX-Vault access code 1185 | -10/Exiles | Opened EX-Vault 1189 | -10/Exiles | Found Skeleton Box 1205 | -10/Exiles | Warned to stay clear of 0b10 Research branches 1212 | -10/Exiles | Exiles lab attacked by MAIN.C 1289 | -10/Exiles | Discovered new exit (range 12) 1295 | -10/Exiles | Left Exiles lab with Skeleton Box 1295 | -10/Exiles | Entered Mines 1321 | -9/Mines | Assembled infested the area 1409 | -9/Mines | Assisted by bots powering up and referring to "LRC-V3" 1473 | -9/Mines | Discovered new exit (range 10) 1481 | -9/Mines | Met a Derelict shopkeep closing up shop 1483 | -9/Mines | Destroyed by G-34 Mercenary with Small Laser Last Messages --------------- 01469_ The unstable cave ceiling collapses. 01469_ Hover Unit crushed. 01470_ U-05 Engineer lays Concrete. 01471_ The unstable cave ceiling collapses. 01471_ U-05 Engineer lays Concrete. 01473_ EXIT=FOUND 01473_ Searching scrap... 01473_ Found Com. Wheel. 01473_ Found Imp. Aluminum Leg. 01473_ Found 27 Matter. 01473_ Found 18 Matter. 01475_ T-07 Excavator is excavating. 01480_ Connecting with SHOP.Sys... 01480_ Current location identified: Mines >>Open Door Sealed Doors opened. 01481_ F1-OG5(g): "Sorry, the Unaware have moved into these parts and I'm closing up shop. No more sales from me!" 01483_ ALERT: Derelict activity detected in mines. Dispatching investigation squad. Map ----- +----------------------------------------------------+ | | | | | | | | | | | | | | | | | | | | | | | | | | | ?????????????????????????????????????????? | | ?????????????????????????????????????????? | | ?????????????????????????????????????????? | | ????????????##?##????????????????????????? | | ????????????#""""???###??????????????????? | | ?????????????!=g|#?## ##????????????? ? | | ?????????????# # !?# #????????????? ? | | ??????????????/ ]?# #??????##????? ? | | ???#??????##### ### #????? #????? ? | | ???# ### X ###### #????? #? | | ????# #% #?????# #? | | ???????# gg =%= #?????# #? | | ???????## g@ g## #####?????# #? | | ????????## ## ####%=#?????????# #? | | ?????????##??## ##??#| ##????????# #? | | ??????????????# ##??## ##??###### #? | | ??????????????## ##???# %#### ! ## | | ???????????????## #????# # # %* # | | ????????????????# #???## ## ! | | ????????????????# ##### !% | | ????????????????# | | ????????????????# |% *% ##### # | | ????????????????##### !% # # | | ????????????????????# | | ????????????????????## | | ?????????????????????# #####%% | | ????????????????????# ### | | ??????????????????? #?# % | | ????????????????? ##?# | | ???????????????? ## #??##### | | ???????????????# #### #?????## # | | ???????????????? ???## ##????## ## | | ???????????????? ????####?????# #? | | ????????????????? #?#######???### ## | | ??????????????????? #?## ##??# # | | ????????????????????### #### ### | | ??????????????# #?## | +----------------------------------------------------+ Best States ------------- Heat Dissipation 25 Energy Generation 10 Energy Capacity 250 Matter Stores 300 Matter Capacity 300 Sight Range 18 Terrain Scan Range 16 Terrain Scan Density 10 Evasion (%) 53 Offensive Hacking 10 Item Schematics ----------------- None Robot Schematics ------------------ None Fabricated ------------ Nothing Alien Tech Used ----------------- None Achievements -------------- None Challenges ------------ None Game ------ Seed ActiveFluxSplitter Manual? 0 Play Time 00:22:49 Cumulative 63.2 hours Start 2024.01.13 @ 23:00:39 End 2024.01.13 @ 23:24:00 Sessions 1 Manual Loads 0 Difficulty Rogue Special Mode None Game No. 37 Rogue 37 Adventurer 0 Explorer 0 Win Type - Total 0 Types 0/0/0/0/0/0/0/0/0 Lore% 53 Gallery% 50 Achievement% 42 Wizard Run 0 Options --------- ASCII 0 Keyboard 1 Movement Arrows Keybinds 0 Fullscreen 1 Font 12/Proggy Map View 83x54 Tactical HUD 1 Map Filters NONE Filters NONE Steam 0 RUN: 9175b21b-1e8f-4e26-8212-ff4050d399f9